{"text_format":"3","workbook":"xlsx","n_sheets":2,"sheets":["Kiểm kê Thiết bị","Thiết đặt"],"not_rendered":{"defined_names":4},"read":"whole","date_system":"1900"}

{"sheet":"Kiểm kê Thiết bị","index":0,"n_rows":35,"n_cols":6,"rows_kept":35,"merged":[[0,1,2,2],[0,4,0,5]]}
[]
[{"$nulls":4},"Tô sáng những mục cũ hơn:"]
[{"$nulls":4},4]
[]
[null,"ID THIẾT BỊ","TÊN MỤC","CẤP CHO","NGÀY CẤP","THỜI GIAN SỬ DỤNG THIẾT BỊ"]
[null,"ITEM0001","ghế","Nhân viên 1",{"$f":"TODAY()-25","v":"2012-12-11"},{"$f":"IF(tblEquipmentInventory[[#This Row],[NGÀY CẤP]]<>\"\",TODAY()-tblEquipmentInventory[[#This Row],[NGÀY CẤP]],\"\")","v":{"v":25,"d":"25 Ngày"}}]
[null,"ITEM0002","máy in laser","Nhân viên 2",{"$f":"TODAY()-479","v":"2011-09-14"},{"$f":"IF(tblEquipmentInventory[[#This Row],[NGÀY CẤP]]<>\"\",TODAY()-tblEquipmentInventory[[#This Row],[NGÀY CẤP]],\"\")","v":{"v":479,"d":"479 Ngày"}}]
[null,"ITEM0003","máy quét","Nhân viên 3",{"$f":"TODAY()-177","v":"2012-07-12"},{"$f":"IF(tblEquipmentInventory[[#This Row],[NGÀY CẤP]]<>\"\",TODAY()-tblEquipmentInventory[[#This Row],[NGÀY CẤP]],\"\")","v":{"v":177,"d":"177 Ngày"}}]
[null,"ITEM0004","máy in laser","Nhân viên 7",{"$f":"TODAY()-18","v":"2012-12-18"},{"$f":"IF(tblEquipmentInventory[[#This Row],[NGÀY CẤP]]<>\"\",TODAY()-tblEquipmentInventory[[#This Row],[NGÀY CẤP]],\"\")","v":{"v":18,"d":"18 Ngày"}}]
[null,"ITEM0005","máy pha cà phê","Nhân viên 20",{"$f":"TODAY()-227","v":"2012-05-23"},{"$f":"IF(tblEquipmentInventory[[#This Row],[NGÀY CẤP]]<>\"\",TODAY()-tblEquipmentInventory[[#This Row],[NGÀY CẤP]],\"\")","v":{"v":227,"d":"227 Ngày"}}]
[null,"ITEM0006","máy quét","Nhân viên 14",{"$f":"TODAY()-50","v":"2012-11-16"},{"$f":"IF(tblEquipmentInventory[[#This Row],[NGÀY CẤP]]<>\"\",TODAY()-tblEquipmentInventory[[#This Row],[NGÀY CẤP]],\"\")","v":{"v":50,"d":"50 Ngày"}}]
[null,"ITEM0007","bàn","Nhân viên 4",{"$f":"TODAY()-120","v":"2012-09-07"},{"$f":"IF(tblEquipmentInventory[[#This Row],[NGÀY CẤP]]<>\"\",TODAY()-tblEquipmentInventory[[#This Row],[NGÀY CẤP]],\"\")","v":{"v":120,"d":"120 Ngày"}}]
[null,"ITEM0008","máy copy","Nhân viên 12",{"$f":"TODAY()-499","v":"2011-08-25"},{"$f":"IF(tblEquipmentInventory[[#This Row],[NGÀY CẤP]]<>\"\",TODAY()-tblEquipmentInventory[[#This Row],[NGÀY CẤP]],\"\")","v":{"v":499,"d":"499 Ngày"}}]
[null,"ITEM0009","màn hình thêm","Nhân viên 8",{"$f":"TODAY()-30","v":"2012-12-06"},{"$f":"IF(tblEquipmentInventory[[#This Row],[NGÀY CẤP]]<>\"\",TODAY()-tblEquipmentInventory[[#This Row],[NGÀY CẤP]],\"\")","v":{"v":30,"d":"30 Ngày"}}]
[null,"ITEM0010","bảng trắng","Nhân viên 19",{"$f":"TODAY()-50","v":"2012-11-16"},{"$f":"IF(tblEquipmentInventory[[#This Row],[NGÀY CẤP]]<>\"\",TODAY()-tblEquipmentInventory[[#This Row],[NGÀY CẤP]],\"\")","v":{"v":50,"d":"50 Ngày"}}]
[null,"ITEM0011","máy copy","Nhân viên 12",{"$f":"TODAY()-450","v":"2011-10-13"},{"$f":"IF(tblEquipmentInventory[[#This Row],[NGÀY CẤP]]<>\"\",TODAY()-tblEquipmentInventory[[#This Row],[NGÀY CẤP]],\"\")","v":{"v":450,"d":"450 Ngày"}}]
[null,"ITEM0012","văn phòng phẩm","Nhân viên 18",{"$f":"TODAY()-420","v":"2011-11-12"},{"$f":"IF(tblEquipmentInventory[[#This Row],[NGÀY CẤP]]<>\"\",TODAY()-tblEquipmentInventory[[#This Row],[NGÀY CẤP]],\"\")","v":{"v":420,"d":"420 Ngày"}}]
[null,"ITEM0013","màn hình thêm","Nhân viên 8",{"$f":"TODAY()-250","v":"2012-04-30"},{"$f":"IF(tblEquipmentInventory[[#This Row],[NGÀY CẤP]]<>\"\",TODAY()-tblEquipmentInventory[[#This Row],[NGÀY CẤP]],\"\")","v":{"v":250,"d":"250 Ngày"}}]
[null,"ITEM0014","máy pha cà phê","Nhân viên 9",{"$f":"TODAY()-45","v":"2012-11-21"},{"$f":"IF(tblEquipmentInventory[[#This Row],[NGÀY CẤP]]<>\"\",TODAY()-tblEquipmentInventory[[#This Row],[NGÀY CẤP]],\"\")","v":{"v":45,"d":"45 Ngày"}}]
[null,"ITEM0015","văn phòng phẩm","Nhân viên 13",{"$f":"TODAY()-502","v":"2011-08-22"},{"$f":"IF(tblEquipmentInventory[[#This Row],[NGÀY CẤP]]<>\"\",TODAY()-tblEquipmentInventory[[#This Row],[NGÀY CẤP]],\"\")","v":{"v":502,"d":"502 Ngày"}}]
[null,"ITEM0016","máy quét","Nhân viên 1",{"$f":"TODAY()-350","v":"2012-01-21"},{"$f":"IF(tblEquipmentInventory[[#This Row],[NGÀY CẤP]]<>\"\",TODAY()-tblEquipmentInventory[[#This Row],[NGÀY CẤP]],\"\")","v":{"v":350,"d":"350 Ngày"}}]
[null,"ITEM0017","máy copy","Nhân viên 19",{"$f":"TODAY()-125","v":"2012-09-02"},{"$f":"IF(tblEquipmentInventory[[#This Row],[NGÀY CẤP]]<>\"\",TODAY()-tblEquipmentInventory[[#This Row],[NGÀY CẤP]],\"\")","v":{"v":125,"d":"125 Ngày"}}]
[null,"ITEM0018","bảng trắng","Nhân viên 15",{"$f":"TODAY()-90","v":"2012-10-07"},{"$f":"IF(tblEquipmentInventory[[#This Row],[NGÀY CẤP]]<>\"\",TODAY()-tblEquipmentInventory[[#This Row],[NGÀY CẤP]],\"\")","v":{"v":90,"d":"90 Ngày"}}]
[null,"ITEM0019","ghế","Nhân viên 16",{"$f":"TODAY()-730","v":"2011-01-06"},{"$f":"IF(tblEquipmentInventory[[#This Row],[NGÀY CẤP]]<>\"\",TODAY()-tblEquipmentInventory[[#This Row],[NGÀY CẤP]],\"\")","v":{"v":730,"d":"730 Ngày"}}]
[null,"ITEM0020","khăn lau bụi (1 bộ)","Nhân viên 3",{"$f":"TODAY()-540","v":"2011-07-15"},{"$f":"IF(tblEquipmentInventory[[#This Row],[NGÀY CẤP]]<>\"\",TODAY()-tblEquipmentInventory[[#This Row],[NGÀY CẤP]],\"\")","v":{"v":540,"d":"540 Ngày"}}]
[null,"ITEM0021","máy in laser","Nhân viên 7",{"$f":"TODAY()-18","v":"2012-12-18"},{"$f":"IF(tblEquipmentInventory[[#This Row],[NGÀY CẤP]]<>\"\",TODAY()-tblEquipmentInventory[[#This Row],[NGÀY CẤP]],\"\")","v":{"v":18,"d":"18 Ngày"}}]
[null,"ITEM0022","máy tính xách tay","Nhân viên 8",{"$f":"TODAY()-283","v":"2012-03-28"},{"$f":"IF(tblEquipmentInventory[[#This Row],[NGÀY CẤP]]<>\"\",TODAY()-tblEquipmentInventory[[#This Row],[NGÀY CẤP]],\"\")","v":{"v":283,"d":"283 Ngày"}}]
[null,"ITEM0023","văn phòng phẩm","Nhân viên 9",{"$f":"TODAY()-479","v":"2011-09-14"},{"$f":"IF(tblEquipmentInventory[[#This Row],[NGÀY CẤP]]<>\"\",TODAY()-tblEquipmentInventory[[#This Row],[NGÀY CẤP]],\"\")","v":{"v":479,"d":"479 Ngày"}}]
[null,"ITEM0024","máy in laser","Nhân viên 19",{"$f":"TODAY()-355","v":"2012-01-16"},{"$f":"IF(tblEquipmentInventory[[#This Row],[NGÀY CẤP]]<>\"\",TODAY()-tblEquipmentInventory[[#This Row],[NGÀY CẤP]],\"\")","v":{"v":355,"d":"355 Ngày"}}]
[null,"ITEM0025","bàn","Nhân viên 7",{"$f":"TODAY()-28","v":"2012-12-08"},{"$f":"IF(tblEquipmentInventory[[#This Row],[NGÀY CẤP]]<>\"\",TODAY()-tblEquipmentInventory[[#This Row],[NGÀY CẤP]],\"\")","v":{"v":28,"d":"28 Ngày"}}]
[null,"ITEM0026","bảng trắng","Nhân viên 8",{"$f":"TODAY()-28","v":"2012-12-08"},{"$f":"IF(tblEquipmentInventory[[#This Row],[NGÀY CẤP]]<>\"\",TODAY()-tblEquipmentInventory[[#This Row],[NGÀY CẤP]],\"\")","v":{"v":28,"d":"28 Ngày"}}]
[null,"ITEM0027","máy tính xách tay","Nhân viên 19",{"$f":"TODAY()-736","v":"2010-12-31"},{"$f":"IF(tblEquipmentInventory[[#This Row],[NGÀY CẤP]]<>\"\",TODAY()-tblEquipmentInventory[[#This Row],[NGÀY CẤP]],\"\")","v":{"v":736,"d":"736 Ngày"}}]
[null,"ITEM0028","bàn","Nhân viên 12",{"$f":"TODAY()-68","v":"2012-10-29"},{"$f":"IF(tblEquipmentInventory[[#This Row],[NGÀY CẤP]]<>\"\",TODAY()-tblEquipmentInventory[[#This Row],[NGÀY CẤP]],\"\")","v":{"v":68,"d":"68 Ngày"}}]
[null,"ITEM0029","máy quét","Nhân viên 14",{"$f":"TODAY()-67","v":"2012-10-30"},{"$f":"IF(tblEquipmentInventory[[#This Row],[NGÀY CẤP]]<>\"\",TODAY()-tblEquipmentInventory[[#This Row],[NGÀY CẤP]],\"\")","v":{"v":67,"d":"67 Ngày"}}]
[null,"ITEM0030","máy pha cà phê","Nhân viên 3",{"$f":"TODAY()-149","v":"2012-08-09"},{"$f":"IF(tblEquipmentInventory[[#This Row],[NGÀY CẤP]]<>\"\",TODAY()-tblEquipmentInventory[[#This Row],[NGÀY CẤP]],\"\")","v":{"v":149,"d":"149 Ngày"}}]

{"sheet":"Thiết đặt","index":1,"n_rows":23,"n_cols":4,"rows_kept":23}
[]
[]
[null,"NHÂN VIÊN",null,"MỤC"]
[null,"Nhân viên 1",null,"ghế"]
[null,"Nhân viên 2",null,"máy pha cà phê"]
[null,"Nhân viên 3",null,"máy copy"]
[null,"Nhân viên 4",null,"máy tính để bàn"]
[null,"Nhân viên 5",null,"khăn lau bụi (1 bộ)"]
[null,"Nhân viên 6",null,"màn hình thêm"]
[null,"Nhân viên 7",null,"máy in phun"]
[null,"Nhân viên 8",null,"máy tính xách tay"]
[null,"Nhân viên 9",null,"máy in laser"]
[null,"Nhân viên 10",null,"bút viết bảng (3 gói)"]
[null,"Nhân viên 11",null,"máy quét"]
[null,"Nhân viên 12",null,"văn phòng phẩm"]
[null,"Nhân viên 13",null,"bàn"]
[null,"Nhân viên 14",null,"ổ đĩa USB"]
[null,"Nhân viên 15",null,"bảng trắng"]
[null,"Nhân viên 16"]
[null,"Nhân viên 17"]
[null,"Nhân viên 18"]
[null,"Nhân viên 19"]
[null,"Nhân viên 20"]